fUSD/lending_fUSD_20240404
["ID","MTS","AMOUNT","RATE_DAILY","PERIOD"]
[321476971,1712221838206,-13441.58847768,0.0002489,2]
[321476973,1712221838215,-199.17,0.00024898,2]
[321476975,1712221838225,-212.0,0.00024898,2]
[321476977,1712221838235,-7500.0,0.00024899,2]
[321476979,1712221838245,-296.49321521,0.00024899,2]
[321476981,1712221838254,-1624.69019738,0.00024899,2]
[321476983,1712221838263,-240.51336512,0.00024899,2]
[321476985,1712221838273,-157.15500887,0.00024899,2]
[321476987,1712221838281,-1624.69019738,0.000249,2]
[321476989,1712221838291,-240.5133651,0.000249,2]
[321476991,1712221838301,-157.15500887,0.000249,2]
[321476993,1712221838310,-986.94767892,0.000249,2]
[321476995,1712221838320,-160.96542044,0.000249,2]
[321476997,1712221838329,-1624.69019738,0.000249,2]
[321476999,1712221838339,-240.5133651,0.000249,2]
[321477001,1712221838348,-157.15500887,0.000249,2]
[321477003,1712221838358,-199.17,0.00024963,2]
[321477005,1712221838367,-161.95,0.00024978,2]
[321477007,1712221838376,-161.95,0.00024978,2]
[321477009,1712221838386,-518.08,0.00024978,2]
[321477011,1712221838396,-161.95,0.00024978,2]
[321477014,1712221838407,-264.96,0.00024978,2]
[321477015,1712221838416,-347.38,0.00024978,2]
[321477017,1712221838426,-161.95,0.00024978,2]
[321477019,1712221838435,-88120.0,0.00024986,2]
[321477021,1712221838444,-20814.0,0.00024986,2]
[321477023,1712221838452,-7706.0,0.00024986,2]
[321477024,1712221838462,-186.53,0.00024989,2]
[321477025,1712221838471,-186.53,0.00024989,2]
[321477026,1712221838480,-186.53,0.00024989,2]
[321477027,1712221838490,-186.53,0.00024989,2]
[321477028,1712221838499,-186.53,0.00024989,2]
[321477029,1712221838509,-1149.27642313,0.00024998,2]
[321477030,1712221838520,-1334.94275521,0.00024998,2]
[321477031,1712221838529,-1358167.57356717,0.00024999,2]
[321477032,1712221838540,-2021130.03220094,0.00024999,2]
[321477033,1712221838549,-461.85886428,0.00024999,2]
[321477034,1712221838558,-525357.62560535,0.00025,2]
[321477035,1712221838567,-1635053.11127652,0.00025,2]
[321477036,1712221838576,-2600.3152557,0.00025,2]
[321477037,1712221838586,-243.57581149,0.00025,2]
[321477038,1712221838595,-155.0,0.00025,2]
[321477039,1712221838604,-256.06,0.00025,2]
[321477040,1712221838613,-8150407.7030671,0.00025,2]
[321477041,1712221838622,-200.0,0.00025,3]
[321477042,1712221838631,-836596.4459654,0.00025,2]
[321477043,1712221838641,-652696.02174775,0.00025,2]
[321477044,1712221838650,-252801.91355037,0.00025,2]
[321477045,1712221838660,-1207.03,0.00025,2]
[321477046,1712221838669,-1169.61,0.00025,2]
[321477047,1712221838679,-1244.68,0.00025,2]
[321477048,1712221838689,-800.0,0.00025,3]
[321477049,1712221838698,-1465.80421839,0.00025016,2]
[321477050,1712221838707,-156.22292,0.0002508,2]
[321477051,1712221838717,-150.0,0.00025178,2]
[321477052,1712221838726,-417.08,0.00025178,2]
[321477053,1712221838737,-150.0,0.00025178,2]
[321477054,1712221838747,-150.0,0.00025178,2]
[321477055,1712221838757,-519.43,0.00025178,2]
[321477056,1712221838766,-348.62,0.00025178,2]
[321477057,1712221838775,-348.62,0.00025178,2]
[321477058,1712221838784,-150.0,0.00025178,2]
[321477059,1712221838794,-150.0,0.00025178,2]
[321477060,1712221838803,-150.0,0.00025178,2]
[321477061,1712221838814,-150.0,0.00025178,2]
[321477062,1712221838823,-150.0,0.00025178,2]
[321477063,1712221838833,-1465.80421842,0.00025398,2]
[321477064,1712221838843,-156.22292,0.0002571,2]
[321477065,1712221838853,-716.94,0.00025958,2]
[321477066,1712221838863,-165.29,0.00026028,2]
[321477067,1712221838872,-743.32,0.00026083,2]
[321477068,1712221838882,-640.0,0.00026299,2]
[321477069,1712221838891,-156.22292,0.0002633,2]
[321477070,1712221838901,-168.84,0.00026337,2]
[321477071,1712221838910,-360.0,0.00026762,2]
[321477072,1712221838921,-163.75,0.00026857,2]
[321477073,1712221838931,-156.22292,0.0002696,2]
[321477074,1712221838942,-850.0,0.00027,3]
[321477075,1712221838952,-454.02,0.00027123,2]
[321477076,1712221838962,-417.98042323,0.00027397,2]
[321477077,1712221838974,-250.0,0.00027397,2]
[321477078,1712221838986,-151.0,0.00027397,7]
[321477079,1712221838995,-151.0,0.00027397,7]
[321477080,1712221839005,-151.0,0.00027397,7]
[321477081,1712221839015,-151.0,0.00027397,7]
[321477082,1712221839025,-151.0,0.00027397,7]
[321477083,1712221839035,-151.0,0.00027397,7]
[321477084,1712221839045,-151.0,0.00027397,7]
[321477085,1712221839055,-151.0,0.00027397,7]
[321477086,1712221839064,-151.0,0.00027397,7]
[321477087,1712221839074,-151.0,0.00027397,7]
[321477088,1712221839083,-151.0,0.00027397,7]
[321477089,1712221839092,-151.0,0.00027397,7]
[321477090,1712221839102,-151.0,0.00027397,7]
[321477091,1712221839111,-151.0,0.00027397,7]
[321477092,1712221839121,-151.0,0.00027397,7]
[321477093,1712221839131,-151.0,0.00027397,7]
[321477094,1712221839144,-647.46,0.000274,2]
[321477095,1712221839154,-647.46,0.000274,2]
[321477096,1712221839163,-647.46,0.000274,2]
[321477097,1712221839173,-647.46,0.000274,2]
[321477098,1712221839183,-647.46,0.000274,2]
[321477099,1712221839193,-1327.40581961,0.00027463,2]
[321477135,1712221839581,-374.28742075,0.00027463,2]
[321477137,1712221839593,-755.30675964,0.00027463,2]
[321477139,1712221839603,-171.85324034,0.00027463,2]
[321477141,1712221839802,-5171.7986065,0.00027463,2]
[321477206,1712221842676,-17245.26415316,0.00027463,2]
[321477207,1712221842686,-1180.0,0.00027463,2]
[321477208,1712221842695,-4863.349,0.00027463,2]
[321477209,1712221842705,-1059.157,0.00027463,2]
[321477210,1712221842714,-168.84,0.00027734,2]
[321477211,1712221842724,-150.0,0.00027779,2]
[321477212,1712221842733,-250.0,0.00027779,2]
[321477213,1712221842742,-280.065,0.00027779,2]
[321477214,1712221842752,-463.793,0.00027779,2]
[321477215,1712221842761,-898.37,0.00027779,2]
[321477216,1712221842771,-284.379,0.00027779,2]
[321477217,1712221842780,-539.0,0.00027779,2]
[321477218,1712221842791,-899.0,0.00027779,2]
[321477219,1712221842801,-1281.464,0.00027779,2]
[321477220,1712221842811,-438.369,0.00027779,2]
[321477221,1712221842820,-812.513,0.00027779,2]
[321477222,1712221842830,-612.474,0.00027779,2]
[321477223,1712221842840,-284.981,0.00027779,2]
[321477224,1712221842851,-1650.497,0.00027779,2]
[321477225,1712221842860,-1140.0,0.00027779,2]
[321477226,1712221842870,-1493.522,0.00027779,2]
[321477227,1712221842880,-150.985,0.00027779,2]
[321477228,1712221842890,-401.372,0.00027779,2]
[321477229,1712221842900,-1631.0,0.00027779,2]
[321477230,1712221842909,-2431.0,0.00027779,2]
[321477231,1712221842919,-207.0,0.00027779,2]
[321477232,1712221842928,-214.0,0.00027779,2]
[321477233,1712221842937,-1169.61,0.000278,2]
[321477234,1712221842947,-1244.68,0.000278,2]
[321477235,1712221842957,-3489.1005803,0.00028,2]
[321477236,1712221842966,-1207.03,0.00028,2]
[321477238,1712221842976,-374.0,0.00028,2]
[321477240,1712221842985,-165.29,0.00028012,2]
[321477242,1712221842995,-1406.0,0.000281,2]
[321477244,1712221843004,-716.94,0.00028222,2]
[321477246,1712221843013,-743.32,0.00028823,2]
[321477248,1712221843023,-560.73809275,0.00029,2]
[321477250,1712221843032,-900.0,0.00029,3]
[321477252,1712221843044,-168.84,0.00029131,2]
[321477254,1712221843053,-640.0,0.00029221,2]
[321477256,1712221843063,-593.70336624,0.000295,3]
[321477258,1712221843072,-360.0,0.00029735,2]
[321477260,1712221843082,-163.75,0.00029842,2]
[321477262,1712221843092,-2640.21942399,0.0002999,2]
[321477264,1712221843102,-3206.28076084,0.0003,2]
[321477267,1712221843112,-241.90421148,0.0003,2]
[321477269,1712221843122,-405.20748901,0.0003,4]
[321477271,1712221843132,-14084.08915975,0.0003,4]
[321477273,1712221843148,-571.22698596,0.0003,7]
[321477275,1712221843159,-108390.52966248,0.0003,4]
[321477277,1712221843168,-227.4704926,0.0003,7]
[321477279,1712221843179,-297.90377655,0.0003,30]
[321477280,1712221843188,-684.0,0.0003,2]
[321477283,1712221843198,-606.74427312,0.0003,4]
[321477285,1712221843206,-778.63794889,0.0003,4]
[321477286,1712221843216,-151.0,0.0003,7]
[321477288,1712221843226,-235.825494,0.0003,7]
[321477290,1712221843236,-206.0,0.0003,2]
[321477292,1712221843245,-8680.4000365,0.00030174,2]
[321477295,1712221843256,-2209.93,0.00030463,2]
[321477297,1712221843266,-183.783,0.00030463,2]
[321477299,1712221843275,-1050.0,0.00030463,2]
[321477300,1712221843286,-716.94,0.00030486,2]
[321477302,1712221843296,-168.84,0.00030528,2]
[321477304,1712221843306,-1169.61,0.000306,2]
[321477307,1712221843317,-1244.68,0.000306,2]
[321477309,1712221843327,-150.0,0.00030779,2]
[321477311,1712221843337,-290.393,0.00030779,2]
[321477313,1712221843347,-1271.0,0.00030779,2]
[321477315,1712221843356,-434.0,0.00030779,2]
[321477317,1712221843367,-606.0,0.00030779,2]
[321477319,1712221843376,-279.0,0.00030779,2]
[321477321,1712221843385,-1140.0,0.00030779,2]
[321477322,1712221843396,-1466.0,0.00030779,2]
[321477324,1712221843405,-150.0,0.00030779,2]
[321477325,1712221843415,-397.0,0.00030779,2]
[321477326,1712221843426,-878.399,0.00030779,2]
[321477327,1712221843436,-1419.095,0.00030779,2]
[321477328,1712221843445,-151.069,0.00030779,2]
[321477329,1712221843454,-177.542,0.00030779,2]
[321477330,1712221843463,-1207.03,0.000309,2]
[321477331,1712221843472,-950.0,0.00031,3]
[321477332,1712221843482,-180.0,0.00031342,2]
[321477333,1712221843491,-186.11391572,0.000314,30]
[321477334,1712221843500,-195.12,0.00031644,2]
[321477335,1712221843510,-168.84,0.00031926,2]
[321477336,1712221843521,-331.73521384,0.00032,4]
[321477337,1712221843530,-640.0,0.00032143,2]
[321477338,1712221843543,-360.0,0.00032709,2]
[321477339,1712221843552,-716.94,0.0003275,2]
[321477340,1712221843561,-163.75,0.00032826,2]
[321477341,1712221843571,-1000.0,0.00032876,2]
[321477342,1712221843580,-1000.0,0.00032876,2]
[321477343,1712221843589,-1000.0,0.00032876,2]
[321477344,1712221843598,-1000.0,0.00032876,2]
[321477345,1712221843608,-1000.0,0.00032876,2]
[321477346,1712221843617,-1000.0,0.00032876,2]
[321477347,1712221843627,-1009.96828419,0.00032876,2]
[321477348,1712221843636,-156.25,0.00032877,2]
[321477349,1712221843645,-156.25,0.00032877,2]
[321477350,1712221843655,-150.0,0.00032877,2]
[321477351,1712221843664,-151.0,0.00032877,7]
[321477352,1712221843674,-151.0,0.00032877,7]
[321477353,1712221843685,-151.0,0.00032877,7]
[321477355,1712221843694,-151.0,0.00032877,7]
[321477357,1712221843703,-151.0,0.00032877,7]
[321477359,1712221843712,-151.0,0.00032877,7]
[321477360,1712221843722,-151.0,0.00032877,7]
[321477361,1712221843731,-151.0,0.00032877,7]
[321477362,1712221843741,-151.0,0.00032877,7]
[321477363,1712221843843,-240.331767,0.00032877,7]
[321477364,1712221843854,-626.706541,0.00032877,7]
[321477365,1712221843864,-626.706541,0.00032877,7]
[321477366,1712221843874,-626.706541,0.00032877,7]
[321477367,1712221843884,-626.706541,0.00032877,7]
[321477368,1712221843893,-626.706541,0.00032877,7]
[321477369,1712221843904,-626.706541,0.00032877,7]
[321477370,1712221843915,-626.706541,0.00032877,7]
[321477371,1712221843926,-626.706541,0.00032877,7]
[321477372,1712221843936,-626.706541,0.00032877,7]
[321477373,1712221843946,-626.706541,0.00032877,7]
[321477374,1712221843957,-626.706541,0.00032877,7]
[321477375,1712221843968,-626.706541,0.00032877,7]
[321477376,1712221843980,-626.706541,0.00032877,7]
[321477377,1712221843991,-626.706541,0.00032877,7]
[321477378,1712221844001,-626.706541,0.00032877,7]
[321477379,1712221844013,-626.706541,0.00032877,7]
[321477380,1712221844024,-626.706541,0.00032877,7]
[321477381,1712221844035,-626.706541,0.00032877,7]
[321477382,1712221844052,-156.25,0.00032877,2]
[321477383,1712221844063,-2307.48,0.00032877,2]
[321477384,1712221844074,-287.03237433,0.000329,30]
[321477385,1712221844088,-1000.0,0.00033,3]
[321477386,1712221844099,-206.0,0.00033,2]
[321477387,1712221844110,-150.0,0.00033742,2]
[321477388,1712221844121,-1271.0,0.00033779,2]
[321477389,1712221844132,-164.324,0.00033779,2]
[321477390,1712221844143,-150.0,0.00034548,10]
[321477391,1712221844153,-150.0,0.00034607,2]
[321477392,1712221844167,-1207.03,0.000347,2]
[321477393,1712221844180,-1169.61,0.000347,2]
[321477394,1712221844192,-1244.68,0.000347,2]
[321477395,1712221844203,-9055.59018033,0.000348,4]
[321477396,1712221844214,-305.58,0.00035,2]
[321477397,1712221844227,-1104.80900693,0.00035,2]
[321477398,1712221844239,-2722.09850664,0.00035,4]
[321477399,1712221844250,-12735.52437326,0.00035,2]
[321477400,1712221844260,-1281.5331215,0.00035,4]
[321477401,1712221844272,-1050.0,0.00035,3]
[321477402,1712221844284,-904.92,0.00035002,2]
[321477403,1712221844299,-904.92,0.00035002,2]
[321477404,1712221844310,-729.12,0.00035002,2]
[321477405,1712221844322,-716.94,0.00035014,2]
[321477406,1712221844333,-640.0,0.00035066,2]
[321477407,1712221844343,-400.14293994,0.00035146,7]
[321477408,1712221844354,-292.23916669,0.00035153,7]
[321477409,1712221844365,-292.23916669,0.00035175,7]
[321477410,1712221844376,-510.18312938,0.00035184,7]
[321477411,1712221844386,-197.97595336,0.00035227,7]
[321477412,1712221844397,-153.79214001,0.00035236,7]
[321477413,1712221844407,-749.45222225,0.00035396,7]
[321477414,1712221844419,-150.0,0.00035472,2]
[321477415,1712221844429,-749.45222225,0.00035478,7]
[321477416,1712221844439,-360.0,0.00035682,2]
[321477417,1712221844449,-197.97595336,0.00035781,7]
[321477418,1712221844458,-163.75,0.0003581,2]
[321477419,1712221844468,-152.63931104,0.00035882,7]
[321477420,1712221844477,-400.14293994,0.00035919,7]
[321477421,1712221844486,-510.18312938,0.00035961,7]
[321477422,1712221844497,-154.06850799,0.00035964,7]
[321477423,1712221844506,-154.06850799,0.00035965,7]
[321477424,1712221844516,-20000.0,0.00036,2]
[321477425,1712221844525,-244.75129591,0.00036094,7]
[321477426,1712221844535,-195.12,0.00036164,2]
[321477427,1712221844548,-197.97595336,0.00036171,7]
[321477428,1712221844557,-510.18312938,0.00036238,7]
[321477429,1712221844568,-292.23916669,0.00036243,7]
[321477430,1712221844578,-152.63931104,0.00036305,7]
[321477431,1712221844587,-150.0,0.00036337,2]
[321477432,1712221844597,-292.23916669,0.00036357,7]
[321477433,1712221844607,-1169.61,0.000364,2]
[321477434,1712221844616,-1244.68,0.000364,7]
[321477435,1712221844625,-510.18312938,0.00036412,7]
[321477436,1712221844635,-292.23916669,0.00036452,7]
[321477437,1712221844644,-1207.03,0.000365,2]
[321477438,1712221844653,-152.63931104,0.00036564,7]
[321477439,1712221844662,-416.91,0.00036747,2]
[321477440,1712221844672,-292.23916669,0.00036777,7]
[321477441,1712221844681,-292.23916669,0.00036856,7]
[321477442,1712221844692,-848.26,0.0003692,2]
[321477443,1712221844701,-151.4,0.0003692,2]
[321477444,1712221844710,-315.7,0.0003692,2]
[321477445,1712221844720,-161.95,0.0003692,2]
[321477446,1712221844729,-177.61,0.0003692,2]
[321477447,1712221844739,-300.0,0.0003692,2]
[321477448,1712221844749,-348.62,0.0003692,2]
[321477449,1712221844760,-161.95,0.0003692,2]
[321477450,1712221844770,-161.95,0.0003692,2]
[321477451,1712221844779,-161.95,0.0003692,2]
[321477452,1712221844791,-161.95,0.0003692,2]
[321477453,1712221844800,-181.02,0.0003692,2]
[321477454,1712221844810,-161.95,0.0003692,2]
[321477455,1712221844819,-161.95,0.0003692,2]
[321477456,1712221844829,-161.95,0.0003692,2]
[321477457,1712221844838,-749.45222225,0.00036947,7]
[321477458,1712221844847,-156.17754036,0.00036963,7]
[321477459,1712221844856,-157.64312318,0.00036982,7]
[321477460,1712221844865,-292.23916669,0.00036985,7]
[321477461,1712221844874,-93638.38967856,0.00037,4]
[321477462,1712221844883,-7165.63146371,0.00037,2]
[321477463,1712221844894,-2305.834403,0.00037,15]
[321477464,1712221844903,-151.0,0.00037,7]
[321477465,1712221844912,-626.706541,0.00037,7]
[321477466,1712221844921,-626.706543,0.00037,7]
[321477467,1712221844930,-151.0,0.00037,7]
[321477468,1712221844940,-150.0,0.00037028,2]
[321477469,1712221844949,-154.06850799,0.00037145,7]
[321477470,1712221844959,-150.0,0.00037203,2]
[321477471,1712221844968,-155.3609739,0.00037261,7]
[321477472,1712221844977,-292.23916669,0.00037271,7]
[321477473,1712221844987,-716.94,0.00037278,2]
[321477474,1712221844996,-197.97595336,0.00037305,7]
[321477475,1712221845005,-197.97595336,0.00037351,7]
[321477476,1712221845014,-181.76738167,0.00037382,7]
[321477477,1712221845024,-153.89032083,0.0003747,7]
[321477478,1712221845033,-197.97595336,0.00037496,7]
[321477479,1712221845044,-453.98163857,0.000375,7]
[321477480,1712221845053,-154.06850799,0.00037587,7]
[321477481,1712221845062,-197.97595336,0.00037669,7]
[321477482,1712221845071,-197.97595336,0.00037715,7]
[321477483,1712221845080,-150.0,0.00037722,120]
[321477484,1712221845089,-161.95,0.00037741,2]
[321477485,1712221845098,-161.95,0.00037741,2]
[321477486,1712221845107,-161.95,0.00037741,2]
[321477487,1712221845117,-161.95,0.00037741,2]
[321477488,1712221845128,-161.95,0.00037741,2]
[321477489,1712221845141,-161.95,0.00037741,2]
[321477490,1712221845151,-163.81072287,0.000378,2]
[321477491,1712221845161,-197.97595336,0.00037813,7]
[321477492,1712221845171,-749.45222225,0.00037937,7]
[321477493,1712221845183,-244.75129591,0.0003795,7]
[321477494,1712221845192,-30000.0,0.00038,3]
[321477495,1712221845202,-155.0,0.00038,4]
[321477496,1712221845211,-5000.0,0.00038,2]
[321477497,1712221845221,-656.0,0.00038,7]
[321477498,1712221845231,-1229.22,0.00038027,15]
[321477499,1712221845240,-150.0,0.00038035,2]
[321477500,1712221845249,-157.64312318,0.00038045,7]
[321477501,1712221845258,-150.0,0.00038068,2]
[321477502,1712221845268,-1207.03,0.000381,2]
[321477503,1712221845277,-1169.61,0.000381,2]
[321477504,1712221845286,-1244.68,0.000381,7]
[321477505,1712221845297,-150.0,0.00038102,2]
[321477506,1712221845307,-150.0,0.00038122,2]
[321477507,1712221845317,-154.06850799,0.00038186,7]
[321477508,1712221845327,-150.0,0.00038213,2]
[321477509,1712221845337,-153.79214001,0.00038218,7]
[321477510,1712221845346,-150.0,0.00038223,2]
[321477511,1712221845355,-150.0,0.0003823,2]
[321477513,1712221845364,-150.0,0.00038249,2]
[321477515,1712221845374,-150.0,0.00038257,2]
[321477516,1712221845383,-150.0,0.00038266,2]
[321477517,1712221845392,-150.0,0.00038272,2]
[321477518,1712221845401,-150.0,0.00038286,2]
[321477519,1712221845410,-150.0,0.00038293,2]
[321477520,1712221845419,-150.0,0.00038299,2]
[321477521,1712221845428,-150.0,0.00038302,2]
[321477522,1712221845437,-150.0,0.00038307,2]
[321477523,1712221845447,-150.0,0.00038329,2]
[321477524,1712221845457,-150.0,0.00038362,2]
[321477525,1712221845466,-150.0,0.00038376,2]
[321477526,1712221845475,-150.0,0.00038382,2]
[321477528,1712221845485,-150.0,0.00038382,2]
[321477530,1712221845495,-150.0,0.00038411,2]
[321477532,1712221845504,-166.94916545,0.00038418,7]
[321477534,1712221845514,-150.0,0.00038422,2]
[321477536,1712221845525,-150.0,0.00038431,2]
[321477538,1712221845535,-150.0,0.00038431,2]
[321477539,1712221845548,-150.0,0.00038432,2]
[321477540,1712221845558,-150.0,0.00038436,2]
[321477541,1712221845568,-150.0,0.00038438,2]
[321477542,1712221845578,-244.75129591,0.00038447,7]
[321477543,1712221845587,-150.0,0.00038449,2]
[321477544,1712221845597,-150.0,0.00038454,2]
[321477545,1712221845606,-150.0,0.00038454,2]
[321477546,1712221845615,-150.0,0.00038468,2]
[321477547,1712221845624,-150.0,0.00038472,2]
[321477548,1712221845633,-150.0,0.00038489,2]
[321477549,1712221845643,-150.0,0.00038495,2]
[321477550,1712221845652,-490.11815053,0.000385,4]
[321477551,1712221845662,-150.0,0.00038525,2]
[321477552,1712221845672,-150.0,0.00038528,2]
[321477553,1712221845682,-150.0,0.00038529,2]
[321477554,1712221845690,-150.0,0.00038529,2]
[321477555,1712221845700,-150.0,0.00038537,2]
[321477556,1712221845710,-150.0,0.00038546,2]
[321477557,1712221845720,-150.0,0.00038568,2]
[321477558,1712221845729,-155.3609739,0.00038568,7]
[321477559,1712221845739,-150.0,0.00038579,2]
[321477560,1712221845748,-150.0,0.00038583,2]
[321477561,1712221845757,-150.0,0.00038601,2]
[321477562,1712221845767,-400.14293994,0.00038624,7]
[321477563,1712221845776,-150.0,0.00038629,2]
[321477564,1712221845790,-150.0,0.0003867,2]
[321477565,1712221845800,-185.7,0.00038678,2]
[321477566,1712221845809,-19591.74,0.00038678,2]
[321477567,1712221845819,-12089.86,0.00038678,2]
[321477568,1712221845828,-150.0,0.00038681,2]
[321477569,1712221845838,-150.0,0.00038689,2]
[321477570,1712221845847,-155.0,0.000387,4]
[321477571,1712221845857,-150.0,0.00038712,2]
[321477572,1712221845866,-400.14293994,0.00038723,7]
[321477573,1712221845875,-150.0,0.00038743,2]
[321477574,1712221845884,-749.45222225,0.0003875,7]
[321477575,1712221845893,-150.0,0.00038759,2]
[321477576,1712221845903,-150.0,0.00038759,2]
[321477577,1712221845912,-150.0,0.00038765,2]
[321477578,1712221845922,-150.0,0.00038776,2]
[321477579,1712221845931,-1500.0,0.00038784,2]
[321477580,1712221845941,-150.0,0.00038788,2]
[321477581,1712221845950,-292.23916669,0.00038791,7]
[321477583,1712221845960,-2952.14781287,0.000388,2]
[321477585,1712221845968,-166.94916546,0.00038821,7]
[321477587,1712221845978,-150.0,0.00038829,2]
[321477588,1712221845987,-157.64312318,0.00038834,7]
[321477589,1712221845996,-154.36506632,0.00038854,2]
[321477590,1712221846006,-150.0,0.00038869,2]
[321477592,1712221846016,-897.20375953,0.0003888,2]
[321477594,1712221846025,-150.0,0.00038888,2]
[321477596,1712221846034,-4065.34553289,0.000389,15]
[321477598,1712221846044,-150.0,0.00038925,2]
[321477600,1712221846054,-150.0,0.00038933,2]
[321477602,1712221846063,-904.92,0.00038939,2]
[321477604,1712221846072,-150.0,0.00038953,2]
[321477606,1712221846081,-150.0,0.00038963,2]
[321477608,1712221846090,-150.0,0.00038969,2]
[321477610,1712221846101,-2293.58507141,0.0003897,2]
[321477613,1712221846110,-197.97595336,0.00038975,7]
[321477616,1712221846118,-150.0,0.00038976,2]
[321477617,1712221846127,-150.0,0.00038977,2]
[321477618,1712221846138,-579.84379418,0.00038978,11]
[321477619,1712221846147,-150.0,0.00038982,2]
[321477620,1712221846158,-300.0,0.00038983,2]
[321477621,1712221846168,-150.0,0.00038989,2]
[321477622,1712221846178,-156.17754036,0.00038997,7]
[321477623,1712221846188,-23536.95463992,0.00039,2]
[321477624,1712221846197,-4373.81715903,0.00039,2]
[321477625,1712221846207,-2107.96876642,0.00039,30]
[321477626,1712221846217,-150.0,0.00039003,2]
[321477627,1712221846227,-155.3609739,0.00039018,7]
[321477628,1712221846237,-150.0,0.00039033,2]
[321477629,1712221846246,-150.0,0.00039035,2]
[321477630,1712221846256,-150.0,0.00039046,2]
[321477631,1712221846266,-150.0,0.00039053,2]
[321477632,1712221846276,-400.14293994,0.00039054,7]
[321477633,1712221846285,-156.17754036,0.00039055,7]
[321477634,1712221846297,-150.0,0.00039058,2]
[321477635,1712221846307,-150.0,0.00039059,2]
[321477636,1712221846318,-150.0,0.0003906,2]
[321477637,1712221846327,-292.23916669,0.00039066,7]
[321477638,1712221846337,-150.0,0.00039068,2]
[321477639,1712221846346,-150.0,0.00039072,2]
[321477640,1712221846356,-150.0,0.00039084,2]
[321477641,1712221846366,-150.0,0.00039086,2]
[321477642,1712221846376,-150.0,0.00039091,2]
[321477643,1712221846385,-150.0,0.00039097,2]
[321477644,1712221846395,-150.0,0.00039099,2]
[321477645,1712221846404,-150.0,0.00039104,2]
[321477646,1712221846414,-150.0,0.00039106,2]
[321477647,1712221846423,-150.0,0.0003911,120]
[321477648,1712221846433,-150.0,0.00039164,2]
[321477649,1712221846443,-150.0,0.00039169,2]
[321477650,1712221846452,-1324.24846315,0.00039178,2]
[321477651,1712221846462,-400.14293994,0.00039179,7]
[321477652,1712221846472,-1102.44137908,0.00039181,2]
[321477653,1712221846481,-1043.43031544,0.00039181,2]
[321477654,1712221846490,-1015.58125912,0.00039181,2]
[321477655,1712221846500,-1122.99861459,0.00039181,2]
[321477656,1712221846510,-1132.62045924,0.00039183,2]
[321477657,1712221846520,-1111.86300692,0.00039183,2]
[321477658,1712221846531,-1011.61256984,0.00039183,2]
[321477659,1712221846541,-150.0,0.00039185,2]
[321477660,1712221846551,-153.62296114,0.00039186,7]
[321477661,1712221846560,-150.0,0.00039201,2]
[321477662,1712221846570,-150.0,0.0003921,2]
[321477663,1712221846580,-1500.0,0.00039244,2]
[321477664,1712221846590,-150.0,0.0003925,2]
[321477665,1712221846599,-150.0,0.00039276,2]
[321477666,1712221846609,-153.62296114,0.00039281,7]
[321477667,1712221846619,-1500.0,0.00039282,2]
[321477668,1712221846628,-1500.0,0.00039284,2]
[321477669,1712221846638,-150.0,0.00039286,2]
[321477670,1712221846647,-749.45222225,0.00039299,7]